bitfinex-derivatives/quotes_BTCF0:USTF0_20251220
["timestamp","ask_amount","ask_price","bid_price","bid_amount"]
[1766271864855,0.00016983,88345.0,88330.0,0.17559334]
[1766271865156,0.02479766,88344.0,88330.0,0.17559334]
[1766271865356,0.02479766,88343.0,88330.0,0.17559334]
[1766271865554,0.00016983,88345.0,88330.0,0.17559334]
[1766271865764,0.02479863,88344.0,88330.0,0.17559334]
[1766271865954,0.02479863,88343.0,88330.0,0.17559334]
[1766271866257,0.00016983,88345.0,88330.0,0.17559334]
[1766271866460,0.02479932,88344.0,88330.0,0.17559334]
[1766271866659,0.02479932,88343.0,88329.0,0.02836]
[1766271866860,0.00016983,88345.0,88329.0,0.02836]
[1766271867060,0.02479952,88344.0,88329.0,0.02836]
[1766271867255,0.02479952,88343.0,88329.0,0.02836]
[1766271867456,0.02479952,88342.0,88329.0,0.02836]
[1766271867656,0.00016983,88345.0,88329.0,0.02836]
[1766271867955,0.0248004,88344.0,88329.0,0.02836]
[1766271868158,0.0248004,88343.0,88329.0,0.02836]
[1766271868359,0.0248004,88342.0,88329.0,0.02836]
[1766271868660,0.00016983,88345.0,88329.0,0.02836]
[1766271868854,0.0248018,88344.0,88329.0,0.02836]
[1766271869057,0.0248018,88343.0,88329.0,0.02836]
[1766271869251,0.0248018,88342.0,88329.0,0.02836]
[1766271869454,0.00016983,88345.0,88329.0,0.02836]
[1766271869755,0.02480378,88344.0,88329.0,0.02836]
[1766271869956,0.02480378,88343.0,88329.0,0.02836]
[1766271870150,0.02480378,88342.0,88329.0,0.02836]
[1766271870353,0.00016983,88345.0,88329.0,0.02836]
[1766271870548,0.02480378,88344.0,88329.0,0.02836]
[1766271870753,0.02480378,88343.0,88329.0,0.02836]
[1766271870963,0.02480378,88342.0,88329.0,0.02836]
[1766271871170,0.00016983,88345.0,88329.0,0.02836]
[1766271871363,0.02480378,88344.0,88329.0,0.02836]
[1766271871561,0.02480378,88343.0,88329.0,0.02836]
[1766271871761,0.02480378,88342.0,88329.0,0.02836]
[1766271872061,0.00016983,88345.0,88329.0,0.02836]
[1766271872258,0.02480362,88344.0,88329.0,0.02836]
[1766271872459,0.02480362,88343.0,88329.0,0.02836]
[1766271872757,0.02480362,88342.0,88329.0,0.02836]
[1766271872951,0.00016983,88345.0,88329.0,0.02836]
[1766271873149,0.0247242,88344.0,88329.0,0.02836]
[1766271873356,0.0247242,88343.0,88329.0,0.02836]
[1766271873557,0.0247242,88342.0,88329.0,0.02836]
[1766271873857,0.00016983,88345.0,88329.0,0.02836]
[1766271874164,0.02472433,88344.0,88329.0,0.02836]
[1766271874351,0.02472433,88343.0,88329.0,0.02836]
[1766271874557,0.02472433,88342.0,88329.0,0.02836]
[1766271874859,0.00016983,88345.0,88329.0,0.02836]
[1766271875058,0.02472452,88344.0,88329.0,0.02836]
[1766271875362,0.02472452,88343.0,88329.0,0.02836]
[1766271875665,0.02472452,88342.0,88329.0,0.02836]
[1766271875854,0.00016983,88345.0,88329.0,0.02836]
[1766271876054,0.02472471,88344.0,88329.0,0.02836]
[1766271876263,0.02472471,88343.0,88330.0,0.0113262]
[1766271876460,0.00016983,88345.0,88330.0,0.18691573]
[1766271876661,0.02472448,88344.0,88329.0,0.02836]
[1766271876962,0.02472448,88343.0,88329.0,0.02836]
[1766271877158,0.02472448,88342.0,88329.0,0.02836]
[1766271877359,0.00016983,88345.0,88329.0,0.02836]
[1766271877563,0.0113246,88343.0,88329.0,0.02836]
[1766271877761,0.0113251,88339.0,88328.0,0.00016983]
[1766271877962,0.0113255,88336.0,88328.0,3e-08]
[1766271878463,0.35117906,88340.0,88328.0,3e-08]
[1766271878668,0.02472021,88339.0,88328.0,3e-08]
[1766271878966,0.02472021,88338.0,88328.0,3e-08]
[1766271879159,0.02472021,88337.0,88328.0,3e-08]
[1766271879354,0.02472021,88336.0,88328.0,3e-08]
[1766271879554,0.35117906,88340.0,88328.0,3e-08]
[1766271879761,0.0247156,88339.0,88328.0,3e-08]
[1766271880058,0.0247156,88338.0,88328.0,3e-08]
[1766271880260,0.0113256,88336.0,88328.0,3e-08]
[1766271881760,0.02836,88335.0,88328.0,3e-08]
[1766271888766,0.0113262,88331.0,88328.0,3e-08]
[1766271888971,0.0113264,88329.0,88328.0,3e-08]
[1766271889155,0.0113268,88326.0,88303.0,0.0113297]
[1766271889355,0.05306331,88329.0,88304.0,0.02836]
[1766271889356,0.0113265,88328.0,88304.0,0.02836]
[1766271889555,0.17558953,88320.0,88304.0,0.02836]
[1766271889768,0.17558953,88320.0,88305.0,0.0113294]
[1766271889970,0.02836,88329.0,88305.0,0.0113294]
[1766271890171,0.00016983,88326.0,88310.0,0.17558953]
[1766271890374,0.00016983,88326.0,88312.0,0.0113285]
[1766271890864,0.06098139,88369.0,88316.0,0.17558953]
[1766271891066,0.17558953,88340.0,88319.0,0.17558953]
[1766271891272,0.05305177,88339.0,88320.0,0.0113275]
[1766271891470,0.05305177,88339.0,88319.0,0.17558953]
[1766271891471,0.02469177,88338.0,88323.0,0.011327]
[1766271891671,0.17558953,88350.0,88328.0,0.17558953]
[1766271891875,0.00016983,88348.0,88330.0,0.00016983]
[1766271892576,0.00016983,88348.0,88331.0,0.011326]
[1766271892876,0.00016983,88348.0,88330.0,0.17575936]
[1766271893079,0.00016983,88348.0,88331.0,0.011326]
[1766271893569,0.00016983,88348.0,88330.0,0.17575936]
[1766271894177,0.00016983,88348.0,88330.0,0.20411936]
[1766271894970,0.00152,88353.0,88338.0,0.17558953]
[1766271895176,0.00152,88353.0,88338.0,0.20394953]
[1766271897778,0.00152,88353.0,88338.0,0.02836]
[1766271900781,0.00152,88353.0,88340.0,0.17558953]
[1766271901272,0.02836,88360.0,88340.0,0.17558953]
[1766271902476,0.06110163,88375.0,88350.0,0.17558953]
[1766271902673,1.4444,88376.0,88354.0,0.00016983]
[1766271902674,0.0113213,88369.0,88354.0,0.00016983]
[1766271902979,0.17558953,88370.0,88354.0,0.00016983]
[1766271903182,0.18691073,88370.0,88354.0,0.00016983]
[1766271903879,0.02452125,88369.0,88354.0,0.00016983]
[1766271904078,0.02452125,88368.0,88354.0,0.00016983]
[1766271904283,0.05288125,88367.0,88354.0,0.00016983]
[1766271904582,0.02452125,88366.0,88354.0,0.00016983]
[1766271904782,0.02452125,88365.0,88354.0,0.00016983]
[1766271905080,0.02836,88367.0,88354.0,0.00016983]
[1766271905381,0.02451124,88366.0,88354.0,0.00016983]
[1766271905583,0.02451124,88365.0,88354.0,0.00016983]
[1766271905773,0.02836,88367.0,88354.0,0.00016983]
[1766271905973,0.02450997,88366.0,88354.0,0.00016983]
[1766271906277,0.02836,88367.0,88354.0,0.00016983]
[1766271906478,0.0245054,88366.0,88354.0,0.00016983]
[1766271906783,0.02836,88367.0,88354.0,0.00016983]
[1766271906974,0.0245054,88366.0,88354.0,0.00016983]
[1766271907171,0.02836,88367.0,88354.0,0.00016983]
[1766271907483,0.02450278,88366.0,88354.0,0.00016983]
[1766271907678,0.02836,88367.0,88354.0,0.00016983]
[1766271907879,0.02450134,88366.0,88354.0,0.00016983]
[1766271908080,0.02836,88367.0,88354.0,0.00016983]
[1766271908380,0.02449921,88366.0,88354.0,0.00016983]
[1766271908580,0.02836,88367.0,88354.0,0.00016983]
[1766271908881,0.02449843,88366.0,88354.0,0.00016983]
[1766271909076,0.02836,88367.0,88354.0,0.00016983]
[1766271911085,0.18691143,88364.0,88354.0,0.00016983]
[1766271911285,0.18691143,88364.0,88350.0,0.02836]
[1766271911484,0.17558953,88360.0,88350.0,0.02836]
[1766271913087,0.02836,88367.0,88350.0,0.02836]
[1766271913285,0.02449405,88366.0,88350.0,0.02836]
[1766271913487,0.00016983,88368.0,88350.0,0.21516133]
[1766271913881,0.00016983,88368.0,88350.0,0.21516129]
[1766271915092,0.00016983,88368.0,88353.0,0.0113232]
[1766271915884,0.00016983,88368.0,88350.0,0.20383769]
[1766271916291,0.00016983,88368.0,88350.0,0.02836]
[1766271916483,0.00016983,88368.0,88351.0,0.0113235]
[1766271918297,0.01149123,88368.0,88350.0,0.02836]
[1766271920382,0.00016983,88368.0,88350.0,0.02836]
[1766271921287,0.02452239,88367.0,88350.0,0.02836]
[1766271921488,0.00016983,88368.0,88350.0,0.02836]
[1766271921687,0.02452239,88367.0,88350.0,0.02836]
[1766271921887,0.00016983,88368.0,88350.0,0.02836]
[1766271922089,0.02452239,88367.0,88350.0,0.0396836]
[1766271922291,0.00016983,88368.0,88350.0,0.0396836]
[1766271922492,0.02452871,88367.0,88350.0,0.0396836]
[1766271922795,0.00016983,88368.0,88350.0,0.0396836]
[1766271922998,0.02452871,88367.0,88350.0,0.0396836]
[1766271923193,0.00016983,88368.0,88350.0,0.0396836]
[1766271923397,0.02452898,88367.0,88350.0,0.0396836]
[1766271923698,0.02452898,88366.0,88350.0,0.0396836]
[1766271923882,0.00016983,88368.0,88350.0,0.0396836]
[1766271924082,0.02453212,88367.0,88350.0,0.0396836]
[1766271924289,0.00016983,88368.0,88350.0,0.0396836]
[1766271924290,0.02453212,88366.0,88350.0,0.0396836]
[1766271924494,0.00016983,88368.0,88350.0,0.0396836]
[1766271924697,0.02453658,88367.0,88350.0,0.0396836]
[1766271924896,0.02453658,88366.0,88350.0,0.0396836]
[1766271925100,0.00016983,88368.0,88350.0,0.0396836]
[1766271925297,0.02453691,88367.0,88350.0,0.0396836]
[1766271925498,0.02453691,88366.0,88350.0,0.0396836]
[1766271925701,0.00016983,88368.0,88350.0,0.0396836]
[1766271925996,0.02453981,88367.0,88350.0,0.0396836]
[1766271926194,0.02453981,88366.0,88350.0,0.0396836]
[1766271926393,0.01132,88379.0,88356.0,0.0113228]
[1766271927500,0.01616,88380.0,88359.0,0.0113224]
[1766271927705,0.01616,88380.0,88360.0,0.02836]
[1766271928197,0.01616,88380.0,88362.0,0.0113221]
[1766271928788,0.01616,88380.0,88360.0,0.02836]
[1766271929700,0.01132,88379.0,88360.0,0.02836]
[1766271929902,0.0113205,88375.0,88360.0,0.02836]
[1766271930203,0.01132,88379.0,88360.0,0.02836]
[1766271934902,0.19163769,88380.0,88360.0,0.02836]
[1766271935604,0.19163769,88380.0,88361.0,0.0113222]
[1766271936400,0.01616,88380.0,88361.0,0.0113222]
[1766271938305,0.02439132,88379.0,88361.0,0.0113222]
[1766271938500,0.06110163,88389.0,88360.0,0.20383769]
[1766271938706,0.02832,88388.0,88366.0,0.00016973]
[1766271939103,0.011319,88387.0,88366.0,0.00016973]
[1766271944510,0.0113191,88386.0,88366.0,0.00016973]
[1766271945204,0.0113191,88386.0,88367.0,0.02832]
[1766271945710,0.0113195,88383.0,88367.0,0.02832]
[1766271945910,0.0396395,88383.0,88367.0,0.02832]
[1766271949510,0.02832,88383.0,88367.0,0.02832]
[1766271950517,0.02427341,88382.0,88367.0,0.02832]
[1766271950713,0.02427341,88381.0,88367.0,0.02832]
[1766271951015,0.02427341,88380.0,88367.0,0.02832]
[1766271951216,0.02832,88383.0,88367.0,0.02832]
[1766271951417,0.02427461,88382.0,88367.0,0.02832]
[1766271951612,0.02427461,88381.0,88367.0,0.02832]
[1766271951808,0.02427461,88380.0,88367.0,0.02832]
[1766271952005,0.02832,88383.0,88367.0,0.02832]
[1766271952210,0.0242747,88382.0,88367.0,0.02832]
[1766271952517,0.0242747,88381.0,88367.0,0.02832]
[1766271952716,0.0242747,88380.0,88367.0,0.02832]
[1766271952910,0.02832,88383.0,88367.0,0.02832]
[1766271953111,0.02427628,88382.0,88367.0,0.02832]
[1766271953311,0.02427628,88381.0,88367.0,0.02832]
[1766271953609,0.02427628,88380.0,88367.0,0.02832]
[1766271953809,0.02832,88383.0,88367.0,0.02832]
[1766271954010,0.02427834,88382.0,88367.0,0.02832]
[1766271954210,0.02427834,88381.0,88367.0,0.02832]
[1766271954410,0.02427834,88380.0,88367.0,0.02832]
[1766271954609,0.02832,88383.0,88367.0,0.02832]
[1766271954809,0.02428092,88382.0,88367.0,0.02832]
[1766271955020,0.02428092,88381.0,88367.0,0.02832]
[1766271955318,0.02428092,88380.0,88367.0,0.02832]
[1766271955513,0.02428092,88379.0,88367.0,0.02832]
[1766271955714,0.02832,88383.0,88367.0,0.02832]
[1766271955920,0.01132,88379.0,88367.0,0.02832]
[1766271956109,0.02428863,88378.0,88366.0,3e-08]
[1766271956316,0.02428863,88378.0,88337.0,0.10210886]
[1766271956317,0.17543571,88376.0,88348.0,0.06085808]
[1766271956516,0.0113225,88359.0,88349.0,0.01892]
[1766271956820,0.011323,88356.0,88346.0,0.01892]
[1766271957020,0.17543571,88360.0,88345.0,0.01712]
[1766271957021,0.18675811,88360.0,88345.0,0.01712]
[1766271957223,0.17543571,88355.0,88333.0,0.06085808]
[1766271957517,0.17543571,88360.0,88335.0,0.00016973]
[1766271957518,0.18675941,88350.0,88335.0,0.00016973]
[1766271957909,0.0001694,88353.0,88335.0,0.00016973]
[1766271959030,0.0001694,88353.0,88340.0,0.17543571]
[1766271959324,0.0001694,88353.0,88340.0,0.20379571]
[1766271959621,0.0001694,88353.0,88340.0,0.02836]
[1766271960627,0.02752,88359.0,88340.0,0.02836]
[1766271962220,0.00692,88366.0,88340.0,0.20379571]
[1766271962421,0.0242565,88365.0,88340.0,0.20379571]
[1766271962610,0.0242565,88364.0,88340.0,0.20379571]
[1766271962815,0.0242565,88363.0,88340.0,0.20379571]
[1766271963016,0.0242565,88362.0,88340.0,0.20379571]
[1766271963221,0.00692,88366.0,88344.0,0.0113243]
[1766271963412,0.02423813,88365.0,88344.0,0.0113243]
[1766271963612,0.02423813,88364.0,88344.0,0.0113243]
[1766271963910,0.02423813,88363.0,88344.0,0.0113243]
[1766271964106,0.02423813,88362.0,88344.0,0.0113243]
[1766271964312,0.00692,88366.0,88344.0,0.0113243]
[1766271964518,0.02423474,88365.0,88344.0,0.0113243]
[1766271964722,0.02423474,88364.0,88344.0,0.0113243]
[1766271964920,0.02423474,88363.0,88344.0,0.0113243]
[1766271965122,0.00692,88366.0,88344.0,0.0113243]
[1766271965320,0.02423167,88365.0,88344.0,0.0113243]
[1766271965623,0.02423167,88364.0,88340.0,0.21512061]
[1766271965923,0.02423167,88363.0,88340.0,0.21512061]
[1766271966121,0.0113218,88365.0,88340.0,0.21512061]
[1766271966423,0.02422889,88364.0,88343.0,0.0113245]
[1766271966725,0.02422889,88363.0,88343.0,0.0113245]
[1766271966923,0.00692,88366.0,88343.0,0.0113245]
[1766271967118,0.0242288,88365.0,88343.0,0.0113245]
[1766271967320,0.0242288,88364.0,88343.0,0.0113245]
[1766271967519,0.02422632,88363.0,88343.0,0.0113245]
[1766271967723,0.00692,88366.0,88343.0,0.0113245]
[1766271967923,0.02422633,88365.0,88343.0,0.0113245]
[1766271968116,0.02422633,88364.0,88343.0,0.0113245]
[1766271968418,0.0182417,88366.0,88343.0,0.0113245]
[1766271968723,0.02422409,88365.0,88343.0,0.0113245]
[1766271968923,0.02422409,88364.0,88343.0,0.0113245]
[1766271969126,0.00692,88366.0,88343.0,0.0113245]
[1766271969318,0.02422302,88365.0,88343.0,0.0113245]
[1766271969519,0.02422302,88364.0,88343.0,0.0113245]
[1766271969719,0.00692,88366.0,88343.0,0.0113245]
[1766271969919,0.02422302,88365.0,88343.0,0.0113245]
[1766271970119,0.02422302,88364.0,88343.0,0.0113245]
[1766271970316,0.00692,88366.0,88343.0,0.0113245]
[1766271970516,0.02422242,88365.0,88343.0,0.0113245]
[1766271970724,0.02422242,88364.0,88343.0,0.0113245]
[1766271970923,0.00692,88366.0,88343.0,0.0113245]
[1766271971123,0.0242224,88365.0,88343.0,0.0113245]
[1766271971322,0.0242224,88364.0,88343.0,0.0113245]
[1766271971522,0.00692,88366.0,88343.0,0.0113245]
[1766271971723,0.02422219,88365.0,88343.0,0.0113245]
[1766271971922,0.02422219,88364.0,88343.0,0.0113245]
[1766271972124,0.00692,88366.0,88343.0,0.0113245]
[1766271972428,0.02422239,88365.0,88343.0,0.0113245]
[1766271972618,0.02422239,88364.0,88343.0,0.0113245]
[1766271972814,0.00692,88366.0,88343.0,0.0113245]
[1766271973124,0.02422239,88365.0,88343.0,0.0113245]
[1766271973328,0.03554429,88364.0,88343.0,0.0113245]
[1766271973519,0.0113219,88364.0,88343.0,0.0113245]
[1766271975229,0.02422549,88363.0,88343.0,0.0113245]
[1766271975431,0.0113219,88364.0,88343.0,0.0113245]
[1766271976130,0.02422715,88363.0,88343.0,0.0113245]
[1766271976332,0.0113219,88364.0,88343.0,0.0113245]
[1766271977132,0.02422938,88363.0,88343.0,0.0113245]
[1766271977334,0.0113219,88364.0,88343.0,0.0113245]
[1766271977526,0.02422938,88363.0,88343.0,0.0113245]
[1766271977830,0.0113219,88364.0,88343.0,0.0113245]
[1766271978028,0.02422938,88363.0,88343.0,0.0113245]
[1766271978223,0.0113219,88364.0,88343.0,0.0113245]
[1766271978424,0.02423214,88363.0,88343.0,0.0113245]
[1766271978726,0.0113219,88364.0,88343.0,0.0113245]
[1766271978933,0.02423214,88363.0,88343.0,0.0113245]
[1766271979231,0.0113219,88364.0,88343.0,0.0113245]
[1766271979432,0.02423544,88363.0,88343.0,0.0113245]
[1766271979634,0.0113219,88364.0,88343.0,0.0113245]
[1766271979831,0.02423544,88363.0,88343.0,0.0113245]
[1766271980027,0.0113219,88364.0,88343.0,0.0113245]
[1766271980226,0.02423544,88363.0,88343.0,0.0113245]
[1766271980431,0.02423544,88362.0,88343.0,0.0113245]
[1766271980630,0.0113219,88364.0,88343.0,0.0113245]
[1766271980830,0.02423943,88363.0,88343.0,0.0113245]
[1766271981029,0.02423943,88362.0,88343.0,0.0113245]
[1766271981233,0.0113219,88364.0,88343.0,0.0113245]
[1766271981534,0.02424424,88363.0,88343.0,0.0113245]
[1766271981737,0.02424424,88362.0,88343.0,0.0113245]
[1766271981936,0.0113219,88364.0,88343.0,0.0113245]
[1766271982126,0.02424424,88363.0,88343.0,0.0113245]
[1766271982328,0.02424424,88362.0,88343.0,0.0113245]
[1766271982532,0.02424424,88361.0,88343.0,0.0113245]
[1766271982735,0.0113219,88364.0,88343.0,0.0113245]
[1766271982934,0.02424988,88363.0,88343.0,0.0113245]
[1766271983134,0.0113219,88364.0,88343.0,0.0113245]
[1766271983135,0.02424988,88362.0,88343.0,0.0113245]
[1766271983331,0.02424988,88361.0,88343.0,0.0113245]
[1766271983535,0.0113223,88361.0,88340.0,0.20387592]
[1766271983740,0.02425714,88360.0,88340.0,0.20387592]
[1766271983940,0.0113223,88361.0,88340.0,0.20387592]
[1766271984241,0.02425723,88360.0,88340.0,0.20387592]
[1766271984435,0.02425723,88359.0,88340.0,0.20387592]
[1766271984642,0.0113223,88361.0,88340.0,0.20387592]
[1766271984842,0.02426598,88360.0,88340.0,0.20387592]
[1766271985037,0.02426598,88359.0,88340.0,0.20387592]
[1766271985230,0.02426598,88358.0,88340.0,0.20387592]
[1766271985436,0.0113223,88361.0,88340.0,0.20387971]
[1766271985637,0.0242773,88360.0,88340.0,0.20387971]
[1766271985846,0.0242773,88359.0,88340.0,0.20387971]
[1766271986032,0.0113218,88365.0,88340.0,0.20387971]
[1766271986234,0.02429627,88364.0,88340.0,0.20387971]
[1766271986441,7e-08,88363.0,88355.0,0.011323]
[1766271986628,0.0113204,88376.0,88356.0,0.02836]
[1766271987543,0.0113207,88373.0,88356.0,0.02836]
[1766271988437,0.18684091,88370.0,88356.0,0.02836]
[1766271994144,0.17551971,88370.0,88356.0,0.02836]
[1766271994849,0.02836,88373.0,88356.0,0.02836]
[1766271998449,0.02416987,88372.0,88356.0,0.02836]
[1766271998648,0.02416987,88371.0,88356.0,0.02836]
[1766271998851,0.02416987,88370.0,88356.0,0.02836]
[1766271999148,0.02416987,88369.0,88356.0,0.02836]
[1766271999349,0.02416987,88368.0,88356.0,0.02836]
[1766271999551,0.02416987,88367.0,88356.0,0.02836]
[1766271999752,0.02836,88373.0,88356.0,0.02836]
[1766271999952,0.02416946,88372.0,88356.0,0.02836]
[1766272000154,0.02416946,88371.0,88356.0,0.02836]
[1766272000344,0.02416946,88370.0,88356.0,0.02836]
[1766272000544,0.02416946,88369.0,88356.0,0.02836]
[1766272000741,0.02416946,88368.0,88356.0,0.02836]
[1766272000946,0.02416946,88367.0,88356.0,0.02836]
[1766272001256,0.02836,88373.0,88356.0,0.02836]
[1766272001555,0.02416912,88372.0,88356.0,0.02836]
[1766272001754,0.02416912,88371.0,88356.0,0.02836]
[1766272001955,0.02416912,88370.0,88356.0,0.02836]
[1766272002155,0.02836,88373.0,88356.0,0.02836]
[1766272002156,0.02416912,88369.0,88356.0,0.02836]
[1766272002356,0.02416912,88368.0,88356.0,0.02836]
[1766272002556,0.02416912,88367.0,88356.0,0.02836]
[1766272002758,0.02836,88373.0,88356.0,0.02836]
[1766272003058,0.02416928,88372.0,88356.0,0.02836]
[1766272003354,0.02416928,88371.0,88356.0,0.02836]
[1766272003555,0.02416928,88370.0,88356.0,0.02836]
[1766272003757,0.02416928,88369.0,88356.0,0.02836]
[1766272003960,0.02416928,88368.0,88356.0,0.02836]
[1766272004147,0.02416928,88367.0,88356.0,0.02836]
[1766272004343,0.02836,88373.0,88356.0,0.02836]
[1766272004549,0.02416995,88372.0,88356.0,0.02836]
[1766272004841,0.02416995,88371.0,88356.0,0.02836]
[1766272005056,0.02416995,88370.0,88356.0,0.02836]
[1766272005257,0.02416995,88369.0,88356.0,0.02836]
[1766272005456,0.02416995,88368.0,88356.0,0.02836]
[1766272005656,0.02416995,88367.0,88356.0,0.02836]
[1766272005858,0.02836,88373.0,88356.0,0.02836]
[1766272006156,0.02417058,88372.0,88356.0,0.02836]
[1766272006356,0.02417058,88371.0,88356.0,0.02836]
[1766272006558,0.02417058,88370.0,88356.0,0.02836]
[1766272006855,0.02417058,88369.0,88356.0,0.02836]
[1766272007055,0.02417058,88368.0,88356.0,0.02836]
[1766272007257,0.02417058,88367.0,88356.0,0.02836]
[1766272007457,0.011321,88371.0,88356.0,0.02836]
[1766272007657,0.02417228,88370.0,88356.0,0.02836]
[1766272007955,0.02417228,88369.0,88356.0,0.02836]
[1766272008257,0.02417228,88368.0,88356.0,0.02836]
[1766272008453,0.02417228,88367.0,88356.0,0.02836]
[1766272008653,0.02836,88373.0,88356.0,0.02836]
[1766272008853,0.02417322,88372.0,88356.0,0.02836]
[1766272009053,0.02417322,88371.0,88356.0,0.02836]
[1766272009356,0.02417322,88370.0,88356.0,0.02836]
[1766272009656,0.02417322,88369.0,88356.0,0.02836]
[1766272009856,0.02417322,88368.0,88356.0,0.02836]
[1766272010057,0.02417322,88367.0,88356.0,0.02836]
[1766272010351,0.02836,88373.0,88356.0,0.02836]
[1766272010556,0.0354966,88372.0,88356.0,0.02836]
[1766272010756,0.0241757,88371.0,88356.0,0.02836]
[1766272011150,0.0241757,88370.0,88356.0,0.02836]
[1766272011350,0.0241757,88369.0,88356.0,0.02836]
[1766272011552,0.0241757,88368.0,88356.0,0.02836]
[1766272011750,0.0241757,88367.0,88356.0,0.02836]
[1766272011950,0.02836,88373.0,88356.0,0.02836]
[1766272012256,0.02417727,88372.0,88356.0,0.02836]
[1766272012448,0.02417727,88371.0,88356.0,0.02836]
[1766272012649,0.02417727,88370.0,88356.0,0.02836]
[1766272012957,0.02417727,88369.0,88356.0,0.02836]
[1766272013162,0.02417727,88368.0,88356.0,0.02836]
[1766272013357,0.02417727,88367.0,88356.0,0.02836]
[1766272013553,0.02836,88373.0,88356.0,0.02836]
[1766272013752,0.02418185,88372.0,88356.0,0.02836]
[1766272014058,0.02418185,88371.0,88356.0,0.02836]
[1766272014254,0.02418185,88370.0,88356.0,0.02836]
[1766272014456,0.02418185,88369.0,88356.0,0.02836]
[1766272014753,0.02418185,88368.0,88356.0,0.02836]
[1766272014954,0.02418185,88367.0,88356.0,0.02836]
[1766272015153,0.02418185,88366.0,88356.0,0.02836]
[1766272015359,0.02836,88373.0,88356.0,0.02836]
[1766272015555,0.0241908,88372.0,88356.0,0.02836]
[1766272015872,0.0241908,88371.0,88356.0,0.02836]
[1766272016157,0.0241908,88370.0,88356.0,0.02836]
[1766272016353,0.0241908,88369.0,88356.0,0.02836]
[1766272016553,0.0241908,88368.0,88356.0,0.02836]
[1766272016752,0.0241908,88367.0,88356.0,0.02836]
[1766272017053,0.0241908,88366.0,88356.0,0.02836]
[1766272017259,0.0241908,88365.0,88356.0,0.02836]
[1766272017454,0.02836,88373.0,88356.0,0.02836]
[1766272017660,0.02420095,88372.0,88356.0,0.02836]
[1766272017957,0.02420095,88371.0,88356.0,0.02836]
[1766272018158,0.02420095,88370.0,88356.0,0.02836]
[1766272018361,0.02420095,88369.0,88356.0,0.02836]
[1766272018560,0.02420095,88368.0,88356.0,0.02836]
[1766272018762,0.02420095,88367.0,88356.0,0.02836]
[1766272018962,0.02420095,88366.0,88356.0,0.02836]
[1766272019161,0.02420095,88365.0,88356.0,0.02836]
[1766272019362,0.02836,88373.0,88356.0,0.02836]
[1766272019562,0.02420074,88372.0,88356.0,0.02836]
[1766272019763,0.02420074,88371.0,88356.0,0.02836]
[1766272020062,0.02420074,88370.0,88356.0,0.02836]
[1766272020259,0.02420074,88369.0,88356.0,0.02836]
[1766272020453,0.02420074,88368.0,88356.0,0.02836]
[1766272020659,0.02420074,88367.0,88356.0,0.02836]
[1766272020863,0.02420074,88366.0,88356.0,0.02836]
[1766272021063,0.02420074,88365.0,88356.0,0.02836]
[1766272021365,0.02836,88373.0,88356.0,0.02836]
[1766272021565,0.02420097,88372.0,88356.0,0.02836]
[1766272021762,0.02420097,88371.0,88356.0,0.02836]
[1766272021961,0.02420097,88370.0,88356.0,0.02836]
[1766272022162,0.02420097,88369.0,88356.0,0.0396828]
[1766272022462,0.02420097,88368.0,88360.0,0.17551971]
[1766272022762,0.02420097,88367.0,88360.0,0.17551971]
[1766272022957,0.02420097,88366.0,88360.0,0.17551971]
[1766272023163,0.02836,88373.0,88360.0,0.17551971]
[1766272023464,0.02411435,88372.0,88360.0,0.17551971]
[1766272023654,0.02411435,88371.0,88356.0,0.0396828]
[1766272023854,0.02411435,88370.0,88356.0,0.0396828]
[1766272024160,0.02411435,88369.0,88356.0,0.0396828]
[1766272024355,0.01411435,88368.0,88359.0,0.0113224]
[1766272024561,0.17547113,88380.0,88359.0,0.17547113]
[1766272026169,0.17547113,88380.0,88361.0,0.0113222]
[1766272027864,0.01132,88379.0,88359.0,0.17547113]
[1766272028063,0.01132,88379.0,88360.0,0.17547113]
[1766272028669,0.02832,88382.0,88318.0,0.08120036]
[1766272028670,0.35094226,88370.0,88318.0,0.08120036]
[1766272028872,0.0113248,88341.0,88312.0,0.02832]
[1766272029063,0.0113251,88339.0,88312.0,0.02832]
[1766272029264,0.17547113,88330.0,88312.0,0.02832]
[1766272029466,0.02836,88340.0,88312.0,0.02832]
[1766272029669,0.011327,88325.0,88317.0,0.00016982]
[1766272029860,0.00016982,88335.0,88310.0,0.02836]
[1766272029861,0.0113274,88322.0,88310.0,0.02836]
[1766272030062,0.02836,88326.0,88310.0,0.20383113]
[1766272030267,0.01408,88325.0,88310.0,0.20383113]
[1766272030571,0.00016982,88335.0,88310.0,0.20383113]
[1766272030771,0.00848,88334.0,88320.0,0.17547113]
[1766272031877,0.02852982,88335.0,88320.0,0.17547113]
[1766272035072,0.00016982,88335.0,88320.0,0.17547113]
[1766272035378,0.00016982,88335.0,88318.0,0.02836]
[1766272036777,0.0113246,88343.0,88320.0,0.17562075]
[1766272037769,0.00016982,88340.0,88320.0,0.17562075]
[1766272042087,0.0113241,88347.0,88321.0,0.0113273]
[1766272042385,0.02701642,88346.0,88321.0,0.0113273]
[1766272042587,0.0113241,88347.0,88321.0,0.0113273]
[1766272042787,0.02701639,88346.0,88321.0,0.0113273]
[1766272042986,0.0113241,88347.0,88321.0,0.0113273]
[1766272043181,0.0113241,88347.0,88324.0,0.0113269]
[1766272043387,0.0113241,88347.0,88325.0,0.02836]
[1766272044091,0.02701847,88346.0,88325.0,0.02836]
[1766272044390,0.0113241,88347.0,88325.0,0.02836]
[1766272044591,0.02701829,88346.0,88325.0,0.02836]
[1766272044784,0.0113241,88347.0,88325.0,0.02836]
[1766272044980,0.02701829,88346.0,88325.0,0.02836]
[1766272045179,0.0113235,88352.0,88327.0,0.0113266]
[1766272045386,0.0113237,88350.0,88331.0,0.00016982]
[1766272045578,0.03053976,88349.0,88331.0,0.00016982]
[1766272045787,0.03834376,88348.0,88331.0,0.00016982]
[1766272045995,0.011324,88348.0,88331.0,0.00016982]
[1766272046190,0.011324,88348.0,88332.0,0.0058]
[1766272050099,0.02703525,88347.0,88332.0,0.0058]
[1766272050300,0.011324,88348.0,88332.0,0.0058]
[1766272050494,0.02703525,88347.0,88332.0,0.0058]
[1766272050694,0.011324,88348.0,88332.0,0.0058]
[1766272050896,0.02703525,88347.0,88332.0,0.0058]
[1766272051199,0.011324,88348.0,88332.0,0.0058]
[1766272051398,0.02704027,88347.0,88332.0,0.0058]
[1766272051593,0.011324,88348.0,88332.0,0.0058]
[1766272051800,0.0113242,88346.0,88332.0,0.0058]
[1766272053098,0.02877848,88345.0,88332.0,0.0058]
[1766272053293,0.02877848,88344.0,88332.0,0.0058]